bitfinex/quotes_BTCUSD_20241208
["timestamp","ask_amount","ask_price","bid_price","bid_amount"]
[1733636889588,0.006,99508.0,99506.0,0.10002951]
[1733636889808,0.006,99508.0,99507.0,0.140693]
[1733636890024,0.006,99508.0,99507.0,0.24072251]
[1733636890260,0.003,99508.0,99507.0,0.25107646]
[1733636890476,0.006,99508.0,99507.0,0.25107646]
[1733636890891,0.05477918,99522.0,99512.0,0.140686]
[1733636891023,0.003,99508.0,99507.0,0.25107646]
[1733636891243,0.004,99508.0,99507.0,0.25107646]
[1733636891434,0.05477918,99522.0,99507.0,0.25107646]
[1733636891672,0.000984,99527.0,99511.0,0.15]
[1733636891924,0.000984,99527.0,99522.0,0.140672]
[1733636892153,0.00477918,99535.0,99514.0,0.140683]
[1733636892154,0.00477918,99535.0,99524.0,0.140669]
[1733636892362,0.05477918,99535.0,99524.0,0.140669]
[1733636892812,0.05477918,99535.0,99523.0,0.10002951]
[1733636893026,0.05477918,99535.0,99524.0,0.140669]
[1733636893474,0.00477918,99535.0,99524.0,0.140669]
[1733636893708,0.00477918,99535.0,99525.0,0.01062105]
[1733636894156,0.00877918,99535.0,99525.0,0.01062105]
[1733636894397,0.00877918,99535.0,99526.0,0.140666]
[1733636894608,0.00577918,99535.0,99526.0,0.140666]
[1733636894822,0.05477918,99535.0,99526.0,0.140666]
[1733636895032,0.00777918,99535.0,99526.0,0.140666]
[1733636895257,0.05777918,99535.0,99526.0,0.140666]
[1733636895467,0.05777918,99535.0,99525.0,0.01062105]
[1733636895468,0.05477918,99535.0,99525.0,0.01062105]
[1733636895916,0.05677918,99535.0,99525.0,0.01062105]
[1733636896364,0.140655,99534.0,99525.0,0.01062105]
[1733636896578,0.14544118,99530.0,99525.0,0.01062105]
[1733636896803,0.14544118,99530.0,99518.0,0.140676]
[1733636896804,0.00477918,99530.0,99518.0,0.140676]
[1733636897041,0.00477918,99530.0,99520.0,0.140675]
[1733636898394,0.00577918,99530.0,99520.0,0.1415418]
[1733636899913,0.140662,99529.0,99520.0,0.0008668]
[1733636900356,0.140662,99529.0,99520.0,0.01642879]
[1733636900804,0.00122976,99519.0,99514.0,0.140683]
[1733636901025,0.00477918,99517.0,99507.0,0.140693]
[1733636901252,0.00477918,99517.0,99509.0,0.14069]
[1733636901489,0.00122976,99519.0,99510.0,0.10002951]
[1733636901721,0.00122976,99519.0,99512.0,0.140686]
[1733636901935,0.00122976,99519.0,99515.0,0.140681]
[1733636902169,0.00122976,99519.0,99516.0,0.01698683]
[1733636902170,0.001,99517.0,99516.0,0.01698683]
[1733636903494,0.00122976,99519.0,99512.0,0.140686]
[1733636903701,0.00222976,99519.0,99512.0,0.140686]
[1733636904135,0.00122976,99519.0,99512.0,0.140686]
[1733636904354,0.001,99517.0,99512.0,0.140686]
[1733636904831,0.00122976,99519.0,99510.0,0.10002951]
[1733636905055,0.00222976,99519.0,99510.0,0.24071751]
[1733636905489,0.00122976,99519.0,99510.0,0.24071751]
[1733636905730,0.00122976,99519.0,99510.0,0.38140551]
[1733636906171,0.00123076,99522.0,99510.0,0.38140551]
[1733636906377,0.00600994,99522.0,99510.0,0.38140551]
[1733636906807,0.001,99517.0,99510.0,0.38140551]
[1733636907017,0.00600994,99522.0,99510.0,0.38140551]
[1733636907225,0.002,99519.0,99510.0,0.38140551]
[1733636907657,0.00600994,99522.0,99510.0,0.38140551]
[1733636907881,0.00600994,99522.0,99512.0,0.140686]
[1733636908931,0.00700994,99522.0,99512.0,0.140686]
[1733636909672,0.140673,99521.0,99512.0,0.140686]
[1733636910318,0.00700994,99522.0,99512.0,0.140686]
[1733636910548,0.00700994,99522.0,99516.0,0.14068]
[1733636910750,0.00123076,99522.0,99518.0,0.140678]
[1733636911018,0.00223076,99522.0,99520.0,0.140675]
[1733636911220,0.00223076,99522.0,99521.0,0.10002951]
[1733636911439,0.00123076,99522.0,99521.0,0.10002951]
[1733636911874,0.00223076,99522.0,99521.0,0.10002951]
[1733636912528,0.00123076,99522.0,99521.0,0.10002951]
[1733636913836,0.00223076,99522.0,99521.0,0.10002951]
[1733636914264,0.00123076,99522.0,99521.0,0.10002951]
[1733636915966,0.00123076,99522.0,99520.0,0.140675]
[1733636919465,0.00477918,99529.0,99518.0,0.140678]
[1733636919708,0.00477918,99529.0,99527.0,0.140664]
[1733636920798,0.00577918,99529.0,99527.0,0.140664]
[1733636921033,0.00577918,99529.0,99527.0,0.1687971]
[1733636921462,0.00477918,99529.0,99527.0,0.1687971]
[1733636921669,0.00577918,99529.0,99527.0,0.1687971]
[1733636921876,0.00777918,99529.0,99527.0,0.1687971]
[1733636922089,0.00577918,99529.0,99527.0,0.0281331]
[1733636922276,0.00577918,99529.0,99525.0,0.140667]
[1733636922944,0.00477918,99529.0,99525.0,0.140667]
[1733636923363,0.00877918,99529.0,99525.0,0.140667]
[1733636923570,0.00777918,99529.0,99525.0,0.140667]
[1733636923780,0.00377918,99529.0,99525.0,0.140667]
[1733636924226,0.00777918,99529.0,99525.0,0.140667]
[1733636924438,0.00577918,99529.0,99525.0,0.140667]
[1733636924655,0.00477918,99529.0,99525.0,0.140667]
[1733636924907,0.00477918,99529.0,99525.0,0.281334]
[1733636925129,0.00477918,99529.0,99519.0,0.10002951]
[1733636925354,0.00477918,99529.0,99527.0,0.140665]
[1733636926193,0.00677918,99529.0,99527.0,0.140665]
[1733636926534,0.00477918,99529.0,99527.0,0.140665]
[1733636926921,0.00677918,99529.0,99527.0,0.140665]
[1733636927132,0.00577918,99529.0,99527.0,0.140665]
[1733636927582,0.00677918,99529.0,99527.0,0.140665]
[1733636927809,0.00577918,99529.0,99525.0,0.140667]
[1733636928226,0.00677918,99529.0,99525.0,0.140667]
[1733636928875,0.00577918,99529.0,99525.0,0.140667]
[1733636929358,0.00377918,99529.0,99525.0,0.140667]
[1733636929585,0.00577918,99529.0,99525.0,0.140667]
[1733636930276,0.003,99529.0,99526.0,0.140666]
[1733636930577,0.003,99529.0,99526.0,0.281332]
[1733636930808,0.003,99529.0,99528.0,0.140663]
[1733636931257,0.001,99529.0,99528.0,0.140663]
[1733636931472,0.0017324,99530.0,99528.0,0.140663]
[1733636931904,0.001,99529.0,99528.0,0.140663]
[1733636932582,0.002,99529.0,99528.0,0.140663]
[1733636933033,0.0017324,99530.0,99528.0,0.140663]
[1733636933034,0.0017324,99530.0,99528.0,0.24069251]
[1733636933261,0.0017324,99530.0,99529.0,0.10002951]
[1733636933722,0.0017324,99530.0,99529.0,0.25002951]
[1733636933945,0.0017324,99530.0,99529.0,0.35631683]
[1733636934171,0.0017336,99540.0,99530.0,0.15]
[1733636934387,0.0017336,99540.0,99539.0,0.140648]
[1733636934615,0.0017336,99540.0,99539.0,0.24067751]
[1733636935284,0.0017336,99540.0,99539.0,0.39067751]
[1733636935520,0.0017336,99540.0,99539.0,0.42073936]
[1733636935746,0.0017336,99540.0,99539.0,0.49703936]
[1733636935956,0.0027336,99540.0,99539.0,0.49703936]
[1733636936425,0.0027336,99540.0,99539.0,0.52003936]
[1733636937805,0.0017336,99540.0,99539.0,0.52813923]
[1733636938234,0.0017336,99540.0,99539.0,0.49818735]
[1733636938446,0.0027336,99540.0,99539.0,0.52809554]
[1733636938664,0.0027336,99540.0,99539.0,0.49818735]
[1733636939819,0.0027336,99540.0,99539.0,0.52808643]
[1733636940021,0.0027336,99540.0,99539.0,0.62130725]
[1733636941306,0.0017336,99540.0,99539.0,0.62130725]
[1733636942054,6e-07,99540.0,99539.0,0.62330725]
[1733636942685,6e-07,99540.0,99539.0,0.62130725]
[1733636942890,0.0010006,99540.0,99539.0,0.62330725]
[1733636944397,0.001733,99580.0,99549.0,0.04622082]
[1733636944605,0.001733,99580.0,99549.0,0.53618433]
[1733636945039,0.001733,99580.0,99549.0,0.56604122]
[1733636945734,0.001733,99580.0,99549.0,0.56804122]
[1733636945941,2e-07,99550.0,99549.0,0.67364122]
[1733636946169,2e-07,99550.0,99549.0,0.72064122]
[1733636947467,2e-07,99550.0,99549.0,0.72664122]
[1733636948189,0.001733,99580.0,99579.0,0.140591]
[1733636948376,0.001733,99580.0,99579.0,0.24062051]
[1733636949494,0.001733,99580.0,99579.0,0.24073048]
[1733636950175,0.001733,99580.0,99579.0,0.24173048]
[1733636951124,0.001733,99580.0,99579.0,0.24473048]
[1733636951554,0.001733,99580.0,99579.0,0.39473048]
[1733636952028,0.001733,99580.0,99579.0,0.39073048]
[1733636952280,0.003733,99580.0,99579.0,0.39073048]
[1733636952963,0.001733,99580.0,99579.0,0.39073048]
[1733636953896,0.001733,99580.0,99579.0,0.39373048]
[1733636954145,0.001733,99580.0,99579.0,0.39073048]
[1733636954360,0.001733,99580.0,99579.0,0.39873048]
[1733636954791,0.001733,99580.0,99579.0,0.39073048]
[1733636955006,0.001733,99580.0,99579.0,0.40428224]
[1733636955452,0.001733,99580.0,99579.0,0.39828224]
[1733636955691,0.001733,99580.0,99579.0,0.40028224]
[1733636956357,0.001733,99580.0,99579.0,0.4084058]
[1733636957003,0.001733,99580.0,99579.0,0.4064058]
[1733636957201,0.001733,99580.0,99579.0,0.4134058]
[1733636957440,0.001733,99580.0,99579.0,0.4064058]
[1733636958091,0.001733,99580.0,99579.0,0.4144058]
[1733636958548,0.001733,99580.0,99579.0,0.4064058]
[1733636958761,0.001733,99580.0,99579.0,0.4094058]
[1733636959209,0.001733,99580.0,99579.0,0.4124058]
[1733636959662,0.001733,99580.0,99579.0,0.4154058]
[1733636960526,0.001733,99580.0,99579.0,0.4094058]
[1733636960742,0.001733,99580.0,99579.0,0.4164058]
[1733636960968,0.001733,99580.0,99579.0,0.4134058]
[1733636961189,0.001733,99580.0,99579.0,0.4164058]
[1733636961619,0.08721218,99580.0,99579.0,0.01766173]
[1733636962049,0.08721218,99580.0,99579.0,0.01010997]
[1733636962539,0.08721218,99580.0,99579.0,0.00710997]
[1733636962976,0.08721218,99580.0,99579.0,0.00810997]
[1733636963672,0.08721218,99580.0,99579.0,0.00110997]
[1733636963857,0.08721218,99580.0,99579.0,0.01528107]
[1733636964082,0.08721218,99580.0,99579.0,0.01928107]
[1733636964294,0.08721218,99580.0,99579.0,0.01428107]
[1733636964515,0.08821218,99580.0,99579.0,0.01428107]
[1733636964951,0.08721218,99580.0,99579.0,0.01428107]
[1733636965167,0.08821218,99580.0,99579.0,0.01428107]
[1733636965374,0.08821218,99580.0,99579.0,0.00010997]
[1733636965583,0.18556744,99580.0,99579.0,0.00010997]
[1733636966075,0.18556744,99580.0,99553.0,0.140628]
[1733636966289,0.00377918,99564.0,99554.0,0.10002951]
[1733636966510,0.00377918,99564.0,99554.0,0.10762014]
[1733636966941,0.00377918,99564.0,99555.0,0.15]
[1733636967153,0.00377918,99562.0,99555.0,0.10002951]
[1733636967385,0.00377918,99562.0,99556.0,0.00758786]
[1733636967827,0.14439518,99562.0,99556.0,0.00758786]
[1733636968059,0.0817,99565.0,99556.0,0.00758786]
[1733636968060,0.00377918,99557.0,99556.0,0.00758786]
[1733636968269,0.00377918,99557.0,99553.0,0.00012136]
[1733636968501,0.222321,99558.0,99553.0,0.00012136]
[1733636968502,0.00377918,99554.0,99553.0,0.00012136]
[1733636971179,0.00377918,99554.0,99553.0,0.01522009]
[1733636971397,0.00377918,99554.0,99553.0,0.01622009]
[1733636971840,0.00377918,99554.0,99553.0,0.01122009]
[1733636975387,0.00377918,99554.0,99553.0,0.01022009]
[1733636975795,0.00377918,99553.0,99550.0,0.0008659]
[1733636976007,0.00377918,99551.0,99550.0,0.0008659]
[1733636976253,0.13067918,99551.0,99550.0,0.0008659]
[1733636976465,0.18043491,99551.0,99550.0,0.0008659]
[1733636977995,0.18443491,99551.0,99550.0,0.0008659]
[1733636978200,0.18843491,99551.0,99550.0,0.0008659]
[1733636978628,0.18443491,99551.0,99550.0,0.0008659]
[1733636978881,0.18343491,99551.0,99550.0,0.0008659]
[1733636980330,0.18843491,99551.0,99550.0,0.0008659]
[1733636980763,0.18343491,99551.0,99550.0,0.0008659]
[1733636980976,0.18743491,99551.0,99550.0,0.0008659]
[1733636981436,0.18043491,99551.0,99550.0,0.0008659]
[1733636981637,0.18343491,99551.0,99550.0,0.0008659]
[1733636981858,0.18843491,99551.0,99550.0,0.0008659]
[1733636982062,0.18043491,99551.0,99550.0,0.0008659]
[1733636982490,0.18343491,99551.0,99550.0,0.0008659]
[1733636983780,0.226904,99551.0,99550.0,0.0008659]
[1733636984036,0.23264827,99551.0,99550.0,0.0008659]
[1733636984440,0.18617918,99551.0,99550.0,0.0008659]
[1733636984664,0.18443501,99551.0,99550.0,0.0008659]
[1733636984875,0.18643501,99551.0,99550.0,0.0008659]
[1733636985082,0.33646452,99551.0,99550.0,0.0008659]
[1733636985290,0.05,99531.0,99530.0,0.000866]
[1733636985518,0.272759,99531.0,99530.0,0.000866]
[1733636987269,0.274759,99531.0,99530.0,0.000866]
[1733636987473,0.272759,99531.0,99530.0,0.000866]
[1733636987749,0.273759,99531.0,99530.0,0.000866]
[1733636987932,0.274759,99531.0,99530.0,0.000866]
[1733636988150,0.273759,99531.0,99530.0,0.000866]
[1733636988380,0.272759,99531.0,99530.0,0.000866]
[1733636988809,0.001,99531.0,99530.0,0.000866]
[1733636989038,0.00477918,99531.0,99530.0,0.000866]
[1733636989258,0.00477918,99531.0,99530.0,0.0150192]
[1733636989900,0.00477918,99531.0,99530.0,0.02335677]
[1733636990111,0.00377918,99531.0,99530.0,0.02335677]
[1733636990344,0.00477918,99531.0,99530.0,0.02335677]
[1733636990994,0.00377918,99531.0,99530.0,0.02335677]
[1733636991206,0.00477918,99531.0,99530.0,0.02335677]
[1733636991786,0.00477918,99531.0,99530.0,0.00920357]
[1733636994673,0.001,99531.0,99530.0,0.00920357]
[1733636994885,0.00477918,99531.0,99530.0,0.00920357]
[1733636995093,0.001,99531.0,99530.0,0.00920357]
[1733637001012,0.00477918,99531.0,99530.0,0.000866]
[1733637001676,0.00477918,99531.0,99530.0,0.00920357]
[1733637001921,0.00477918,99531.0,99530.0,0.000866]
[1733637002563,0.00377918,99531.0,99530.0,0.000866]
[1733637002777,0.00703504,99531.0,99530.0,0.000866]
[1733637002990,0.05963504,99531.0,99530.0,0.000866]
[1733637003226,0.002,99531.0,99530.0,0.000866]
[1733637003441,0.00577918,99531.0,99530.0,0.000866]
[1733637003659,0.00877918,99531.0,99530.0,0.000866]
[1733637003871,0.00677918,99531.0,99530.0,0.000866]
[1733637004095,0.00577918,99531.0,99530.0,0.000866]
[1733637004317,0.01077918,99531.0,99530.0,0.000866]
[1733637004569,0.00577918,99531.0,99530.0,0.000866]
[1733637005443,0.00377918,99531.0,99530.0,0.000866]
[1733637005892,0.01077918,99531.0,99530.0,0.000866]
[1733637006353,0.00377918,99531.0,99530.0,0.000866]
[1733637006565,0.00777918,99531.0,99530.0,0.000866]
[1733637006795,0.00577918,99531.0,99530.0,0.000866]
[1733637007012,0.00377918,99533.0,99530.0,0.00920437]
[1733637007198,0.002,99531.0,99530.0,0.0290856]
[1733637007669,0.004,99531.0,99530.0,0.0290856]
[1733637008102,0.00777918,99531.0,99530.0,0.000866]
[1733637008816,0.00577918,99531.0,99530.0,0.000866]
[1733637009052,0.00377918,99531.0,99530.0,0.000866]
[1733637009993,0.00477918,99531.0,99530.0,0.000866]
[1733637010412,0.00577918,99531.0,99530.0,0.000866]
[1733637013380,0.00477918,99531.0,99530.0,0.000866]
[1733637013674,0.00577918,99531.0,99530.0,0.000866]
[1733637013883,0.00777918,99531.0,99530.0,0.000866]
[1733637014768,0.14843818,99531.0,99530.0,0.000866]
[1733637014967,0.14643818,99531.0,99530.0,0.000866]
[1733637015215,0.14843818,99531.0,99530.0,0.000866]
[1733637015645,0.19443818,99531.0,99530.0,0.000866]
[1733637016111,0.19843818,99531.0,99530.0,0.000866]
[1733637016342,0.19643818,99531.0,99530.0,0.000866]
[1733637016998,0.19843818,99531.0,99530.0,0.000866]
[1733637017679,0.27953818,99531.0,99530.0,0.000866]
[1733637018127,0.32543818,99531.0,99530.0,0.000866]
[1733637019001,0.37291096,99531.0,99530.0,0.000866]
[1733637020379,0.47294047,99531.0,99530.0,0.000866]
[1733637021243,0.47094047,99531.0,99530.0,0.000866]
[1733637021741,0.47494047,99531.0,99530.0,0.000866]
[1733637022176,0.47294047,99531.0,99530.0,0.000866]
[1733637022627,0.47994047,99531.0,99530.0,0.001866]
[1733637022844,0.81085059,99531.0,99530.0,0.001866]
[1733637023067,0.99013497,99531.0,99530.0,0.001866]
[1733637023279,0.81085059,99531.0,99530.0,0.001866]
[1733637023491,0.47994047,99531.0,99530.0,0.001866]
[1733637023731,0.81075757,99531.0,99530.0,0.001866]
[1733637023953,0.86075757,99531.0,99530.0,0.001866]
[1733637024184,1.08478781,99531.0,99530.0,0.001866]
[1733637024402,0.86074851,99531.0,99530.0,0.001866]
[1733637025301,1.03990754,99531.0,99530.0,0.001866]
[1733637025519,1.08478781,99531.0,99530.0,0.001866]
[1733637026071,0.86074851,99531.0,99530.0,0.001866]
[1733637027280,1.08463089,99531.0,99530.0,0.001866]
[1733637027482,1.23063089,99531.0,99530.0,0.001866]
[1733637027776,0.32145218,99521.0,99520.0,0.0008661]
[1733637027984,0.42148169,99521.0,99520.0,0.00098212]
[1733637028881,0.47148169,99521.0,99520.0,0.00098212]
[1733637029093,0.47848169,99521.0,99520.0,0.00198212]
[1733637029293,0.66116913,99521.0,99520.0,0.00198212]
[1733637029778,0.6611693,99521.0,99520.0,0.00198212]
[1733637030315,0.57166818,99521.0,99520.0,0.00198212]
[1733637031192,0.59183112,99521.0,99520.0,0.00198212]
[1733637031429,0.59583112,99521.0,99520.0,0.00198212]
[1733637032994,0.4130421,99521.0,99520.0,0.00198212]
[1733637035947,0.30401512,99521.0,99520.0,0.00198212]
[1733637036195,0.06477918,99521.0,99520.0,0.00198212]
[1733637037332,0.06077918,99521.0,99520.0,0.00198212]
[1733637037784,0.06377918,99521.0,99520.0,0.00198212]
[1733637038264,0.05377918,99521.0,99520.0,0.00098212]
[1733637038499,0.05677918,99521.0,99520.0,0.00098212]
[1733637038714,0.06077918,99521.0,99520.0,0.00098212]
[1733637038951,0.05677918,99521.0,99520.0,0.00098212]
[1733637039214,0.05677918,99521.0,99520.0,0.00198212]
[1733637039438,0.05677918,99521.0,99520.0,0.00098212]
[1733637039669,0.05677918,99521.0,99520.0,0.00198212]
[1733637039899,0.05377918,99521.0,99520.0,0.00198212]
[1733637040126,0.05477918,99521.0,99520.0,0.00198212]
[1733637040626,0.05377918,99521.0,99520.0,0.00198212]
[1733637041063,0.05477918,99521.0,99520.0,0.00198212]
[1733637042522,0.05477918,99521.0,99520.0,0.00098212]
[1733637042723,0.05877918,99521.0,99520.0,0.00198212]
[1733637042960,0.05677918,99521.0,99520.0,0.00098212]
[1733637043403,0.05977918,99521.0,99520.0,0.00098212]
[1733637044064,0.05677918,99521.0,99520.0,0.00098212]
[1733637044301,0.05877918,99521.0,99520.0,0.00098212]
[1733637045548,0.05577918,99521.0,99520.0,0.00098212]
[1733637045761,0.05377918,99521.0,99520.0,0.00098212]
[1733637046049,0.05677918,99521.0,99520.0,0.00098212]
[1733637046269,0.05577918,99521.0,99520.0,0.00098212]
[1733637046794,0.05677918,99521.0,99520.0,0.00098212]
[1733637047007,0.05877918,99521.0,99520.0,0.00098212]
[1733637047405,0.05677918,99521.0,99520.0,0.00098212]
[1733637047865,0.05577918,99521.0,99520.0,0.00098212]
[1733637048109,0.05777918,99521.0,99520.0,0.00098212]
[1733637048298,0.05577918,99521.0,99520.0,0.00098212]
[1733637048967,0.05377918,99521.0,99520.0,0.00098212]
[1733637049180,0.05677918,99521.0,99520.0,0.00098212]
[1733637049654,0.05477918,99521.0,99520.0,0.00098212]
[1733637049838,0.05377918,99521.0,99520.0,0.00098212]
[1733637050043,0.05577918,99521.0,99520.0,0.00098212]
[1733637050453,0.05377918,99521.0,99520.0,0.00098212]
[1733637050893,0.05777918,99521.0,99520.0,0.00098212]
[1733637051096,0.05577918,99521.0,99520.0,0.00098212]
[1733637051511,0.05777918,99521.0,99520.0,0.00098212]
[1733637051720,0.08086156,99521.0,99520.0,0.00098212]
[1733637052005,0.05903533,99521.0,99520.0,0.00098212]
[1733637052873,0.05503533,99521.0,99520.0,0.00098212]
[1733637053084,0.05703533,99521.0,99520.0,0.00098212]
[1733637053516,0.05503533,99521.0,99520.0,0.00098212]
[1733637054012,0.05903533,99521.0,99520.0,0.00098212]
[1733637054455,0.05503533,99521.0,99520.0,0.00098212]
[1733637054680,0.05903533,99521.0,99520.0,0.00098212]
[1733637054913,0.06203533,99521.0,99520.0,0.00098212]
[1733637055130,0.07067207,99521.0,99520.0,0.00098212]
[1733637055348,0.06903533,99521.0,99520.0,0.00098212]
[1733637057838,0.06777918,99521.0,99520.0,0.00098212]
[1733637059695,0.01777918,99521.0,99520.0,0.14165712]
[1733637060766,0.01,99521.0,99520.0,0.14165712]
[1733637061020,0.00551138,99530.0,99520.0,0.14165712]
[1733637061228,0.00551138,99530.0,99529.0,0.140662]
[1733637061441,0.05,99529.0,99528.0,0.0782]
[1733637062365,0.00551138,99530.0,99529.0,0.140662]
[1733637062596,0.0017322,99530.0,99529.0,0.16108244]
[1733637063239,0.00551138,99530.0,99529.0,0.16108244]
[1733637063713,0.00851138,99530.0,99529.0,0.16108244]
[1733637063890,0.00851138,99530.0,99529.0,0.02042044]
[1733637064784,0.01451138,99530.0,99529.0,0.02142044]
[1733637065894,0.01451138,99530.0,99529.0,0.001]
[1733637066596,0.0107322,99530.0,99529.0,0.001]
[1733637067471,0.0107322,99530.0,99529.0,0.01086799]
[1733637070292,0.0107322,99530.0,99529.0,0.1108975]
[1733637075620,0.0107322,99530.0,99529.0,0.1591975]
[1733637075841,0.0077322,99530.0,99529.0,0.1591975]
[1733637076078,0.0027322,99530.0,99529.0,0.1581975]
[1733637076301,0.0037322,99530.0,99529.0,0.1581975]
[1733637077688,0.0027322,99530.0,99529.0,0.1581975]
[1733637077914,0.0017322,99530.0,99529.0,0.1581975]
[1733637078131,0.0017322,99530.0,99529.0,0.1601975]
[1733637079241,0.0017322,99530.0,99529.0,0.1118975]
[1733637082993,0.00551138,99530.0,99529.0,0.01186799]
[1733637083216,0.15842772,99530.0,99529.0,0.01186799]
[1733637083442,0.18571138,99530.0,99529.0,0.01186799]
[1733637083651,0.18571138,99530.0,99529.0,0.002]
[1733637084328,0.140662,99529.0,99520.0,0.00098212]
[1733637084545,0.20624323,99530.0,99520.0,0.00098212]
[1733637084546,0.00377918,99527.0,99520.0,0.00098212]
[1733637084750,0.14481138,99530.0,99529.0,0.001]
[1733637084994,0.14481138,99530.0,99521.0,0.00986021]
[1733637084995,0.13981138,99530.0,99521.0,0.00986021]
[1733637085221,0.140662,99529.0,99520.0,0.01514863]
[1733637085469,0.05,99525.0,99522.0,0.00986728]
[1733637085682,0.05,99525.0,99521.0,0.0098687]
[1733637085899,0.05,99525.0,99520.0,0.01514863]
[1733637086118,0.05,99525.0,99522.0,0.02608078]
[1733637087043,0.05377918,99527.0,99522.0,0.02608078]
[1733637087259,0.05,99525.0,99522.0,0.02608078]
[1733637087720,0.05,99525.0,99523.0,0.00986417]
[1733637087947,0.055,99525.0,99523.0,0.00986417]
[1733637088156,0.052,99525.0,99523.0,0.00986417]
[1733637088364,0.05,99525.0,99523.0,0.00986417]
[1733637088560,0.053,99525.0,99523.0,0.00986417]
[1733637088702,0.055,99525.0,99523.0,0.00986417]
[1733637089121,0.053,99525.0,99523.0,0.00986417]
[1733637089383,0.05,99525.0,99523.0,0.00986417]
[1733637089577,0.055,99525.0,99523.0,0.00986417]
[1733637091095,0.055,99525.0,99523.0,0.02403068]
[1733637091533,0.055,99525.0,99523.0,0.01416651]
[1733637091974,0.055,99525.0,99520.0,0.00098212]
[1733637092402,0.053,99525.0,99521.0,0.00987283]
[1733637092609,0.053,99525.0,99521.0,0.15054483]
[1733637092817,0.055,99525.0,99521.0,0.15054483]
[1733637093047,0.052,99525.0,99521.0,0.15054483]
[1733637093270,0.052,99525.0,99521.0,0.00987283]
[1733637094397,0.055,99525.0,99521.0,0.00987283]
[1733637094600,0.053,99525.0,99521.0,0.00987283]
[1733637094822,0.052,99525.0,99521.0,0.00987283]
[1733637095031,0.054,99525.0,99521.0,0.00987283]
[1733637095445,0.052,99525.0,99521.0,0.00987283]
[1733637095657,0.054,99525.0,99521.0,0.00987283]
[1733637095885,0.052,99525.0,99522.0,0.140672]
[1733637096324,0.052,99525.0,99523.0,0.00987561]
[1733637096471,0.054,99525.0,99523.0,0.00987561]
[1733637097374,0.002,99525.0,99523.0,0.00987561]
[1733637097584,0.05,99529.0,99524.0,0.01515287]
[1733637097813,0.002,99525.0,99524.0,0.01515287]
[1733637098496,0.002,99525.0,99524.0,0.15582187]
[1733637099191,0.0017322,99530.0,99524.0,0.29649087]
[1733637099401,0.004,99525.0,99524.0,0.281338]
[1733637099840,0.004,99525.0,99524.0,0.29121139]
[1733637100655,0.0017322,99530.0,99524.0,0.15054239]
[1733637100864,0.0057322,99530.0,99528.0,0.140663]
[1733637101175,0.0047322,99530.0,99528.0,0.140663]
[1733637101404,0.0047322,99530.0,99529.0,0.0300017]
[1733637101624,0.0017322,99530.0,99529.0,0.0300017]
[1733637101828,0.0027322,99530.0,99529.0,0.0300017]
[1733637102074,0.0037322,99530.0,99529.0,0.0300017]
[1733637102280,0.0017322,99530.0,99529.0,0.0300017]
[1733637102692,0.0037322,99530.0,99529.0,0.0300017]
[1733637103393,0.0037322,99530.0,99529.0,0.03986792]
[1733637103569,0.0037322,99530.0,99529.0,0.00986622]
[1733637103989,0.0027322,99530.0,99529.0,0.00986622]
[1733637104128,0.0017322,99530.0,99529.0,0.00986622]
[1733637104379,0.0027322,99530.0,99529.0,0.00986622]
[1733637104544,0.0027322,99530.0,99529.0,0.0398672]
[1733637104775,0.0027322,99530.0,99529.0,0.0408672]
[1733637105111,0.0017322,99530.0,99529.0,0.0408672]
[1733637115705,0.0017322,99530.0,99529.0,0.1815292]
[1733637119081,0.0017322,99530.0,99520.0,0.18250525]
[1733637119260,0.0017322,99530.0,99529.0,0.00915979]
[1733637119464,0.0017322,99530.0,99526.0,0.140666]
[1733637119678,0.0017322,99530.0,99526.0,0.24069551]
[1733637119918,0.0017322,99530.0,99527.0,0.00916262]
[1733637120784,0.0789322,99530.0,99527.0,0.00916262]
[1733637121837,0.3602542,99530.0,99527.0,0.00916262]
[1733637122290,0.3602542,99530.0,99527.0,0.001]
[1733637123621,0.05377918,99528.0,99527.0,0.001]
[1733637124847,0.05377918,99528.0,99520.0,0.0008661]
[1733637124848,0.140665,99527.0,99520.0,0.0008661]
[1733637125083,0.05,99526.0,99520.0,0.0008661]
[1733637126498,0.140668,99525.0,99520.0,0.0008661]
[1733637126697,0.140673,99522.0,99520.0,0.0008661]
[1733637127937,0.140673,99522.0,99520.0,0.0018661]
[1733637128171,0.140673,99522.0,99520.0,0.0008661]
[1733637129568,0.140673,99522.0,99520.0,0.0028661]
[1733637129774,0.140673,99522.0,99520.0,0.0008661]
[1733637129973,0.141673,99522.0,99520.0,0.0008661]
[1733637130226,0.143673,99522.0,99520.0,0.0008661]
[1733637130664,0.002,99522.0,99520.0,0.0008661]
[1733637130874,0.003,99522.0,99520.0,0.0008661]
[1733637131092,0.140673,99521.0,99520.0,0.0008661]
[1733637131312,0.003,99522.0,99520.0,0.0008661]
[1733637131740,0.140673,99521.0,99520.0,0.0008661]
[1733637132912,0.141673,99521.0,99520.0,0.0008661]
[1733637133114,0.142673,99521.0,99520.0,0.0008661]
[1733637133794,0.140673,99521.0,99520.0,0.0008661]
[1733637134011,0.143673,99521.0,99520.0,0.0008661]
[1733637134330,0.140673,99521.0,99520.0,0.0008661]
[1733637134545,0.141673,99521.0,99520.0,0.0008661]
[1733637134768,0.142673,99521.0,99520.0,0.0008661]
[1733637134978,0.218273,99521.0,99520.0,0.0008661]
[1733637135234,0.002,99521.0,99520.0,0.0008661]
[1733637136303,0.002,99521.0,99520.0,0.10089561]
[1733637137209,0.001,99521.0,99520.0,0.10089561]
[1733637137427,0.0017322,99530.0,99521.0,0.140673]
[1733637137655,0.0017322,99530.0,99523.0,0.140671]
[1733637137875,0.0017322,99530.0,99525.0,0.140668]
[1733637138072,0.0017322,99530.0,99526.0,0.10002951]
[1733637138265,0.0017322,99530.0,99527.0,0.140665]
[1733637138525,0.0017322,99530.0,99528.0,0.10002951]
[1733637139638,0.0017322,99530.0,99529.0,0.140662]
[1733637139846,0.0017322,99530.0,99529.0,0.24069151]
[1733637140472,0.0047322,99530.0,99529.0,0.24069151]
[1733637140684,0.0037322,99530.0,99529.0,0.24069151]
[1733637140896,0.0017322,99530.0,99529.0,0.24069151]
[1733637141107,0.0027322,99530.0,99529.0,0.24069151]
[1733637141324,0.0037322,99530.0,99529.0,0.2498579]
[1733637141851,0.0037322,99530.0,99529.0,0.3257579]
[1733637142079,0.0037322,99530.0,99529.0,0.70900337]
[1733637142281,0.0037322,99530.0,99529.0,0.62414212]
[1733637143286,0.0017322,99530.0,99529.0,0.80457588]